[Event "1.FrauenBL 2019-20"]
[Site "Baden-Baden"]
[Date "2020.02.02"]
[Round "6.7"]
[White "Muetsch, Annmarie"]
[Black "Ratay, Meike"]
[Result "0-1"]
[ECO "B51"]
[WhiteElo "2227"]
[BlackElo "1973"]
[Annotator "ChessBase"]
[PlyCount "82"]
[EventDate "2019.09.14"]
[EventType "team-tourn"]
[EventCountry "GER"]
[SourceTitle "playchess.com"]
[Source "ChessBase"]
[SourceQuality "1"]
[WhiteTeam "KSF"]
[BlackTeam "ERF"]
[TimeControl "40/5400+30:1800+30"]

1. e4 {[%emt 0:00:30]} c5 {[%emt 0:00:30]} 2. Nf3 {[%emt 0:00:00]} d6 {[%emt 0:00:00]} 3. Bb5+ {[%emt 0:00:00]} Nd7 {[%emt 0:00:00]} 4. O-O {[%emt 0:00:00]} a6 {[%emt 0:00:00]} 5. Bd3 {[%emt 0:00:00]} Ngf6 {[%emt 0:00:00]} 6. Re1 {[%emt 0:00:30]} g6 {[%emt 0:00:30]} 7. c3 {[%emt 0:00:00]} Bg7 {[%emt 0:00:30]} 8. Bc2 {[%emt 0:00:00]} O-O {[%emt 0:00:30]} 9. d4 {[%emt 0:00:30]} cxd4 {[%emt 0:01:30]} 10. cxd4 {[%emt 0:00:30]} b5 {[%emt 0:01:30]} 11. Nc3 {[%emt 0:00:30]} Bb7 {[%emt 0:05:30]} 12. a3 {[%emt 0:01:30]} Rc8 {[%emt 0:07:30]} 13. h3 {[%emt 0:01:30]} Nb6 {[%emt 0:02:30]} 14. Qe2 {[%emt 0:00:30]} Qc7 {[%emt 0:03:30]} 15. Bd3 {[%emt 0:02:30]} Nc4 {[%emt 0:08:30]} 16. a4 {[%emt 0:20:30]} b4 {[%emt 0:06:30]} 17. Nd1 {[%emt 0:00:30]} a5 {[%emt 0:07:30]} 18. Bg5 {[%emt 0:07:30]} Nb6 {[%emt 0:00:30]} 19. b3 {[%emt 0:11:30]} e5 {[%emt 0:06:30]} 20. Rc1 {[%emt 0:09:30]} Qb8 {[%emt 0:00:30]} 21. dxe5 {[%emt 0:01:30]} dxe5 {[%emt 0:01:30]} 22. Rxc8 {[%emt 0:04:30]} Rxc8 {[%emt 0:00:30]} 23. Bxf6 {[%emt 0:00:30]} Bxf6 {[%emt 0:00:30]} 24. Ba6 {[%emt 0:00:30]} Nd7 {[%emt 0:07:30]} 25. Ne3 {[%emt 0:10:30]} Nc5 {[%emt 0:08:30]} 26. Bxb7 {[%emt 0:00:30]} Qxb7 {[%emt 0:00:30]} 27. Nd5 {[%emt 0:01:30]} Bg7 {[%emt 0:05:30]} 28. Rc1 {[%emt 0:03:30]} Bf8 {[%emt 0:03:30]} 29. Nxe5 {[%emt 0:11:01]} Nxb3 {[%emt 0:03:54]} 30. Rd1 {[%emt 0:07:08]} Nc5 {[%emt 0:02:16]} 31. Nc4 {[%emt 0:03:40]} Qa6 {[%emt 0:03:28]} 32. Ndb6 {[%emt 0:02:16]} Rc6 {[%emt 0:02:16]} 33. Qg4 {[%emt 0:00:48]} Rxb6 {[%emt 0:04:55]} 34. Nxb6 {[%emt 0:00:25]} Qxb6 {[%emt 0:00:07]} 35. e5 {[%emt 0:00:38]} Nxa4 {[%emt 0:01:12]} 36. Qf3 {[%emt 0:00:32]} Nc3 {[%emt 0:02:06]} 37. Rd7 {[%emt 0:00:13]} Qe6 {[%emt 0:00:36]} 38. Ra7 {[%emt 0:00:17]} a4 {[%emt 0:01:11]} 39. Ra8 {[%emt 0:00:51]} Qxe5 {[%emt 0:01:35]} 40. Qb7 {[%emt 0:00:29]} Qd6 {[%emt 0:00:00]} 41. Ra7 {[%emt 0:03:12]} Ne2+ {[%emt 0:02:54]} 0-1

[Event "1.FrauenBL 2019-20"]
[Site "Baden-Baden"]
[Date "2020.02.02"]
[Round "6.8"]
[White "Nguyen, Ha Thanh"]
[Black "Georgescu, Lena"]
[Result "1/2-1/2"]
[ECO "C54"]
[WhiteElo "1980"]
[BlackElo "2285"]
[Annotator "ChessBase"]
[PlyCount "66"]
[EventDate "2019.09.14"]
[EventType "team-tourn"]
[EventCountry "GER"]
[SourceTitle "playchess.com"]
[Source "ChessBase"]
[SourceQuality "1"]
[WhiteTeam "ERF"]
[BlackTeam "KSF"]
[TimeControl "40/5400+30:1800+30"]

1. e4 {[%emt 0:00:30]} e5 {[%emt 0:00:30]} 2. Nf3 {[%emt 0:00:00]} Nc6 {[%emt 0:00:00]} 3. Bc4 {[%emt 0:00:00]} Bc5 {[%emt 0:00:00]} 4. c3 {[%emt 0:00:30]} Nf6 {[%emt 0:00:00]} 5. d3 {[%emt 0:00:00]} d6 {[%emt 0:00:00]} 6. O-O {[%emt 0:01:00]} O-O {[%emt 0:00:30]} 7. Nbd2 {[%emt 0:01:30]} a5 {[%emt 0:00:00]} 8. a4 {[%emt 0:01:30]} Be6 {[%emt 0:06:00]} 9. h3 {[%emt 0:05:30]} h6 {[%emt 0:02:30]} 10. Re1 {[%emt 0:02:30]} Re8 {[%emt 0:03:30]} 11. Bb5 {[%emt 0:03:30]} Bd7 {[%emt 0:04:30]} 12. Nf1 {[%emt 0:06:30]} Ne7 {[%emt 0:03:30]} 13. Bxd7 {[%emt 0:05:30]} Qxd7 {[%emt 0:00:30]} 14. Nh4 {[%emt 0:00:30]} d5 {[%emt 0:00:00]} 15. Qf3 {[%emt 0:01:30]} Ra6 {[%emt 0:16:00]} 16. Ne3 {[%emt 0:12:30]} dxe4 {[%emt 0:02:30]} 17. dxe4 {[%emt 0:00:30]} Qd3 {[%emt 0:00:30]} 18. Ng4 {[%emt 0:09:30]} Qxf3 {[%emt 0:01:30]} 19. Nxf3 {[%emt 0:00:00]} Nxg4 {[%emt 0:02:30]} 20. hxg4 {[%emt 0:00:00]} Nc8 {[%emt 0:02:30]} 21. Rb1 {[%emt 0:05:30]} Bf8 {[%emt 0:06:30]} 22. Be3 {[%emt 0:03:30]} Nd6 {[%emt 0:04:30]} 23. Nd2 {[%emt 0:00:30]} Rc6 {[%emt 0:01:30]} 24. Rbc1 {[%emt 0:03:30]} Nc4 {[%emt 0:02:30]} 25. b3 {[%emt 0:01:30]} Nxd2 {[%emt 0:05:30]} 26. Bxd2 {[%emt 0:02:30]} Rd8 {[%emt 0:00:30]} 27. Rc2 {[%emt 0:08:30]} Bc5 {[%emt 0:09:30]} 28. Kf1 {[%emt 0:02:30]} Kf8 {[%emt 0:04:30]} 29. Ke2 {[%emt 0:01:30]} Ke7 {[%emt 0:00:30]} 30. Rh1 {[%emt 0:01:30]} f6 {[%emt 0:03:30]} 31. f3 {[%emt 0:01:30]} Ke6 {[%emt 0:00:10]} 32. Rhc1 {[%emt 0:00:56]} Rcd6 {[%emt 0:00:59]} 33. Rb1 {[%emt 0:06:44]} Rb6 {[%emt 0:07:55]} 1/2-1/2

[Event "1.FrauenBL 2019-20"]
[Site "Baden-Baden"]
[Date "2020.02.02"]
[Round "6.9"]
[White "Mader, Manuela"]
[Black "Reuter, Elisa"]
[Result "0-1"]
[ECO "B22"]
[WhiteElo "2220"]
[BlackElo "1864"]
[Annotator "ChessBase"]
[PlyCount "72"]
[EventDate "2019.09.14"]
[EventType "team-tourn"]
[EventCountry "GER"]
[SourceTitle "playchess.com"]
[Source "ChessBase"]
[SourceQuality "1"]
[WhiteTeam "KSF"]
[BlackTeam "ERF"]
[TimeControl "40/5400+30:1800+30"]

1. e4 {[%emt 0:00:30]} c5 {[%emt 0:00:30]} 2. c3 {[%emt 0:00:00]} Nf6 {[%emt 0:00:00]} 3. e5 {[%emt 0:00:00]} Nd5 {[%emt 0:00:00]} 4. Nf3 {[%emt 0:00:00]} e6 {[%emt 0:00:30]} 5. Bc4 {[%emt 0:00:00]} d6 {[%emt 0:00:30]} 6. d4 {[%emt 0:08:30]} cxd4 {[%emt 0:00:30]} 7. cxd4 {[%emt 0:00:00]} Nc6 {[%emt 0:00:30]} 8. O-O {[%emt 0:03:00]} Be7 {[%emt 0:01:30]} 9. Qe2 {[%emt 0:00:30]} O-O {[%emt 0:02:30]} 10. Nc3 {[%emt 0:00:30]} Nxc3 {[%emt 0:01:30]} 11. bxc3 {[%emt 0:00:30]} b6 {[%emt 0:10:30]} 12. Bd3 {[%emt 0:10:30]} Bb7 {[%emt 0:02:30]} 13. h4 {[%emt 0:05:30]} g6 {[%emt 0:08:30]} 14. exd6 {[%emt 0:39:30]} Qxd6 {[%emt 0:01:30]} 15. Ng5 {[%emt 0:02:30]} Qd8 {[%emt 0:01:30]} 16. Re1 {[%emt 0:04:30]} Bf6 {[%emt 0:02:30]} 17. Qg4 {[%emt 0:04:30]} h5 {[%emt 0:04:30]} 18. Qg3 {[%emt 0:07:19]} Ne7 {[%emt 0:03:30]} 19. Nxe6 {[%emt 0:08:51]} fxe6 {[%emt 0:02:30]} 20. Bxg6 {[%emt 0:00:06]} Bg7 {[%emt 0:01:30]} 21. Bxh5 {[%emt 0:00:55]} Nf5 {[%emt 0:02:30]} 22. Qg6 {[%emt 0:00:39]} Bd5 {[%emt 0:02:30]} 23. Bg5 {[%emt 0:01:15]} Qd6 {[%emt 0:04:30]} 24. Bg4 {[%emt 0:01:16]} Qd7 {[%emt 0:00:30]} 25. Bxf5 {[%emt 0:01:03]} Rxf5 {[%emt 0:00:30]} 26. g4 {[%emt 0:00:30]} Rf3 {[%emt 0:00:30]} 27. Re3 {[%emt 0:00:23]} Qf7 {[%emt 0:01:30]} 28. Qxf7+ {[%emt 0:00:07]} Kxf7 {[%emt 0:00:30]} 29. Rxf3+ {[%emt 0:01:01]} Bxf3 {[%emt 0:00:00]} 30. Kh2 {[%emt 0:00:30]} Bxg4 {[%emt 0:00:00]} 31. Kg3 {[%emt 0:00:05]} Bf5 {[%emt 0:00:30]} 32. Kf4 {[%emt 0:00:45]} Bg6 {[%emt 0:00:30]} 33. Kg4 {[%emt 0:00:44]} Bf6 {[%emt 0:00:30]} 34. f4 {[%emt 0:00:29]} Bf5+ {[%emt 0:00:30]} 35. Kg3 {[%emt 0:00:02]} Rc8 {[%emt 0:00:30]} 36. Rc1 {[%emt 0:00:56]} Bxd4 0-1

[Event "1.FrauenBL 2019-20"]
[Site "Baden-Baden"]
[Date "2020.02.02"]
[Round "6.10"]
[White "Mueller-Ludwig, Kristin"]
[Black "Schmidt, Jessica"]
[Result "1/2-1/2"]
[ECO "B01"]
[WhiteElo "2103"]
[BlackElo "2243"]
[Annotator "ChessBase"]
[PlyCount "51"]
[EventDate "2019.09.14"]
[EventType "team-tourn"]
[EventCountry "GER"]
[SourceTitle "playchess.com"]
[Source "ChessBase"]
[SourceQuality "1"]
[WhiteTeam "ERF"]
[BlackTeam "KSF"]
[TimeControl "40/5400+30:1800+30"]

1. e4 {[%emt 0:00:30]} d5 {[%emt 0:00:30]} 2. exd5 {[%emt 0:00:00]} Qxd5 {[%emt 0:00:00]} 3. Nc3 {[%emt 0:00:00]} Qa5 {[%emt 0:00:00]} 4. d4 {[%emt 0:01:30]} Nf6 {[%emt 0:00:30]} 5. Bc4 {[%emt 0:01:30]} Bf5 {[%emt 0:01:30]} 6. Bd2 {[%emt 0:01:30]} c6 {[%emt 0:01:30]} 7. Nge2 {[%emt 0:01:30]} e6 {[%emt 0:01:30]} 8. O-O {[%emt 0:01:30]} Qc7 {[%emt 0:02:30]} 9. Bf4 {[%emt 0:03:30]} Bd6 {[%emt 0:02:30]} 10. Bxd6 {[%emt 0:01:30]} Qxd6 {[%emt 0:00:00]} 11. Ng3 {[%emt 0:05:30]} Bg6 {[%emt 0:00:00]} 12. Re1 {[%emt 0:09:30]} O-O {[%emt 0:02:30]} 13. Nce4 {[%emt 0:05:30]} Nxe4 {[%emt 0:03:30]} 14. Nxe4 {[%emt 0:02:30]} Qb4 {[%emt 0:02:30]} 15. Bb3 {[%emt 0:03:30]} Nd7 {[%emt 0:00:30]} 16. c3 {[%emt 0:09:30]} Qb6 {[%emt 0:02:30]} 17. Qe2 {[%emt 0:13:30]} c5 {[%emt 0:11:30]} 18. Nxc5 {[%emt 0:09:30]} Nxc5 {[%emt 0:00:30]} 19. dxc5 {[%emt 0:00:30]} Qxc5 {[%emt 0:00:00]} 20. Qe3 {[%emt 0:08:21]} Qxe3 {[%emt 0:03:00]} 21. Rxe3 {[%emt 0:00:08]} Rfd8 {[%emt 0:00:30]} 22. Re2 {[%emt 0:00:10]} Rd6 {[%emt 0:00:30]} 23. Rd1 {[%emt 0:01:50]} Rxd1+ {[%emt 0:00:30]} 24. Bxd1 {[%emt 0:00:08]} Rd8 {[%emt 0:00:30]} 25. Bb3 {[%emt 0:00:04]} Kf8 {[%emt 0:00:30]} 26. f3 {[%emt 0:00:08]} 1/2-1/2

[Event "1.FrauenBL 2019-20"]
[Site "Baden-Baden"]
[Date "2020.02.02"]
[Round "6.11"]
[White "Kiefhaber, Veronika"]
[Black "Troyke, Doreen"]
[Result "1-0"]
[ECO "B22"]
[WhiteElo "2142"]
[BlackElo "2021"]
[Annotator "ChessBase"]
[PlyCount "67"]
[EventDate "2019.09.14"]
[EventType "team-tourn"]
[EventCountry "GER"]
[SourceTitle "playchess.com"]
[Source "ChessBase"]
[SourceQuality "1"]
[WhiteTeam "KSF"]
[BlackTeam "ERF"]
[TimeControl "40/5400+30:1800+30"]

1. e4 {[%emt 0:00:30]} c5 {[%emt 0:00:30]} 2. c3 {[%emt 0:00:00]} d5 {[%emt 0:00:00]} 3. exd5 {[%emt 0:00:00]} Qxd5 {[%emt 0:00:00]} 4. Nf3 {[%emt 0:00:30]} Nf6 {[%emt 0:00:30]} 5. d4 {[%emt 0:00:30]} Nc6 {[%emt 0:00:30]} 6. Be3 {[%emt 0:00:30]} cxd4 {[%emt 0:01:30]} 7. cxd4 {[%emt 0:00:30]} e6 {[%emt 0:01:30]} 8. Nc3 {[%emt 0:00:30]} Qd6 {[%emt 0:01:30]} 9. a3 {[%emt 0:03:30]} Be7 {[%emt 0:01:30]} 10. Bd3 {[%emt 0:00:30]} O-O {[%emt 0:01:30]} 11. O-O {[%emt 0:00:30]} b6 {[%emt 0:03:30]} 12. Qe2 {[%emt 0:05:30]} Bb7 {[%emt 0:03:30]} 13. Rad1 {[%emt 0:01:30]} Rad8 {[%emt 0:14:30]} 14. Bb1 {[%emt 0:03:30]} Qb8 {[%emt 0:08:30]} 15. Rfe1 {[%emt 0:07:30]} Rfe8 {[%emt 0:04:30]} 16. Bg5 {[%emt 0:11:30]} g6 {[%emt 0:06:30]} 17. Ba2 {[%emt 0:04:30]} Kg7 {[%emt 0:13:30]} 18. b4 {[%emt 0:24:30]} h6 {[%emt 0:12:30]} 19. Bc1 {[%emt 0:04:30]} Ng4 {[%emt 0:03:32]} 20. d5 {[%emt 0:16:49]} exd5 {[%emt 0:03:23]} 21. h3 {[%emt 0:03:27]} Bf6 {[%emt 0:05:02]} 22. Qd2 {[%emt 0:00:58]} Rxe1+ {[%emt 0:01:18]} 23. Rxe1 {[%emt 0:00:20]} Nge5 {[%emt 0:00:24]} 24. Qxh6+ {[%emt 0:00:37]} Kg8 {[%emt 0:00:15]} 25. Ng5 {[%emt 0:01:00]} Bg7 {[%emt 0:01:13]} 26. Qh7+ {[%emt 0:00:13]} Kf8 {[%emt 0:00:04]} 27. Nxd5 {[%emt 0:01:10]} Nd3 {[%emt 0:02:07]} 28. Rd1 {[%emt 0:00:38]} Nxc1 {[%emt 0:00:27]} 29. Rxc1 {[%emt 0:00:29]} Qe5 {[%emt 0:02:56]} 30. Nxf7 {[%emt 0:03:01]} Qb2 {[%emt 0:01:26]} 31. Re1 {[%emt 0:02:45]} Kxf7 {[%emt 0:02:21]} 32. Nf4+ {[%emt 0:02:02]} Qxa2 {[%emt 0:00:37]} 33. Qxg6+ {[%emt 0:00:09]} Kg8 {[%emt 0:00:34]} 34. Ne6 {[%emt 0:00:39]} 1-0

[Event "1.FrauenBL 2019-20"]
[Site "Baden-Baden"]
[Date "2020.02.02"]
[Round "6.12"]
[White "Umpfenbach, Carolin"]
[Black "Moingt, Anne"]
[Result "1/2-1/2"]
[ECO "B14"]
[WhiteElo "2073"]
[BlackElo "2068"]
[Annotator "NA RC"]
[PlyCount "97"]
[EventDate "2019.09.14"]
[EventType "team-tourn"]
[EventCountry "GER"]
[SourceTitle "playchess.com"]
[Source "ChessBase"]
[SourceQuality "1"]
[WhiteTeam "ERF"]
[BlackTeam "KSF"]
[TimeControl "40/5400+30:1800+30"]

1. d4 {[%emt 0:00:30]} Nf6 {[%emt 0:00:30]} 2. c4 {[%emt 0:00:00]} e6 {[%emt 0:00:00]} 3. Nc3 {[%emt 0:00:00]} Bb4 {[%emt 0:00:00]} 4. Bd2 {[%emt 0:07:30]} O-O {[%emt 0:00:30]} 5. Nf3 {[%emt 0:02:30]} c5 {[%emt 0:04:30]} 6. e3 {[%emt 0:05:30]} cxd4 {[%emt 0:05:30]} 7. exd4 {[%emt 0:02:30]} d5 {[%emt 0:03:30] [#]} 8. Qa4 $146 {[%emt 0:03:30] B14: Caro-Kann: Panov-Botvinnik Attack with 5...e6 and 5...g6} ({Predecessor:} 8. c5 b6 9. a3 Bxc3 10. Bxc3 Ne4 11. Qc2 bxc5 12. dxc5 Nxc3 13. Qxc3 e5 14. Bb5 d4 15. Qd2 Qd5 16. Rc1 {0-1 (46) Sandipan,C (2603)-Eljanov,P (2719) Doha 2014}) 8... Be7 {[%emt 0:01:30]} 9. c5 {[%emt 0:01:30]} Nc6 {[%emt 0:06:30]} 10. Bb5 {[%emt 0:02:30]} Bd7 {[%emt 0:03:30]} 11. O-O {[%emt 0:01:30]} Qc7 {[%emt 0:12:30]} 12. Rfe1 {[%emt 0:02:30]} a5 {[%emt 0:08:30]} 13. g3 {[%emt 0:15:30]} Rfe8 {[%emt 0:12:30]} (13... Rfc8 $11) 14. Bf4 {[%emt 0:03:30]} Qd8 {[%emt 0:01:30]} 15. a3 {[%emt 0:08:30]} Na7 {[%emt 0:03:30]} 16. Bxd7 {[%emt 0:00:30]} Nxd7 {[%emt 0:00:30]} 17. b4 {[%emt 0:03:30]} axb4 {[%emt 0:02:30]} 18. axb4 {[%emt 0:00:30]} Nc6 {[%emt 0:01:30]} 19. Qxa8 {[%emt 0:10:30]} Qxa8 {[%emt 0:00:00]} 20. Rxa8 {[%emt 0:00:00]} Rxa8 {[%emt 0:00:00]} 21. b5 {[%emt 0:00:00]} Nb4 {[%emt 0:00:30]} 22. Rb1 {[%emt 0:03:30]} Nd3 {[%emt 0:04:30]} 23. Bd2 {[%emt 0:04:30]} Nf6 {[%emt 0:02:30]} 24. Kf1 {[%emt 0:06:19]} Ne4 {[%emt 0:00:30]} 25. Nxe4 {[%emt 0:03:01]} dxe4 {[%emt 0:00:00]} 26. Ne1 {[%emt 0:03:43]} f6 {[%emt 0:04:00]} 27. Nxd3 {[%emt 0:01:16]} exd3 {[%emt 0:00:30]} 28. Rb3 {[%emt 0:00:30]} Rd8 {[%emt 0:00:00]} 29. c6 {[%emt 0:02:08]} bxc6 {[%emt 0:00:00]} 30. bxc6 {[%emt 0:00:05]} Rc8 {[%emt 0:00:30]} 31. Rb6 {[%emt 0:05:37]} Kf7 {[%emt 0:06:23]} 32. Bc3 {[%emt 0:01:15]} Bd8 {[%emt 0:03:11]} 33. Ra6 {[%emt 0:00:04]} Rb8 {[%emt 0:04:54]} 34. Ke1 {[%emt 0:00:08]} Ke7 {[%emt 0:01:01]} 35. Kd2 {[%emt 0:00:27]} Kd6 {[%emt 0:00:19]} 36. Kxd3 {[%emt 0:00:25]} Bb6 {[%emt 0:00:35]} 37. Kc4 {[%emt 0:01:12]} Kc7 {[%emt 0:01:21]} 38. f4 {[%emt 0:00:29]} Rd8 {[%emt 0:01:03]} 39. f5 {[%emt 0:01:02]} Rd6 {[%emt 0:00:56]} 40. fxe6 {[%emt 0:00:22]} Rxc6+ {[%emt 0:00:06]} 41. Kd3 {[%emt 0:31:07]} Rxe6 {[%emt 0:03:41]} 42. Ra8 {[%emt 0:00:00]} Kc6 {[%emt 0:08:30]} 43. Rg8 {[%emt 0:00:00]} Re7 {[%emt 0:02:30]} 44. Kc4 {[%emt 0:00:00]} Rf7 {[%emt 0:03:30]} 45. g4 {[%emt 0:00:00]} g6 {[%emt 0:00:30]} 46. d5+ {[%emt 0:00:00]} Kd7 {[%emt 0:01:30]} 47. Bb4 {[%emt 0:00:00]} f5 {[%emt 0:00:30]} 48. gxf5 $11 {[%emt 0:00:00]} gxf5 {[%emt 0:00:30]} 49. Rf8 {[%emt 0:00:00]} 1/2-1/2